Cogmind - Beta 17 @@@ ROGUE MODE // 2026.07.01 @ 20:07:53 Player: Cinder Result: Destroyed by G-34 Mercenary with Small Laser Performance ------------- Evolutions (1) 500 Regions Visited (2) 400 Robots Destroyed (50) 250 Value Destroyed (1184) 1184 Prototype IDs (0) 0 Alien Tech Used (0) 0 Bonus (0) 0 TOTAL SCORE: 2334 Bonus ------- None Cogmind --------- Core Integrity 0/400 Matter 300/300 Energy 248/250 System Corruption 0% Temperature Cool (6) Movement Rolling (135) Ox3 Location -9/Materials Parts ------- > --- POWER (1) -------- Ion Engine > --- PROPULSION (2) --- Wheel Compact Wheel > --- UTILITY (4) ------ Heat Sink Heat Sink Huge Storage Unit Machine Analyzer > --- WEAPON (2) ------- Beam Rifle Autogun > --- INVENTORY (25) --- Ion Engine Improved Ion Engine Wheel Wheel Wheel Wheel Wheel Heat Sink Heat Sink Heat Sink Huge Storage Unit High-capacity Matter Pod (200) High-capacity Matter Pod (200) Seismic Detector Transport Network Coupler Targeting Computer Targeting Computer Shield Generator Mini Grenade Launcher Peak State ------------ > --- POWER ------------ Ion Engine > --- PROPULSION ------- Wheel Compact Wheel > --- UTILITY ---------- Heat Sink Heat Sink Huge Storage Unit Machine Analyzer > --- WEAPON ----------- Beam Rifle Autogun > --- INVENTORY -------- Ion Engine Improved Ion Engine Wheel Wheel Wheel Heat Sink Heat Sink Heat Sink Huge Storage Unit High-capacity Matter Pod High-capacity Matter Pod Seismic Detector Transport Network Coupler Targeting Computer Targeting Computer Shield Generator Mini Grenade Launcher [Rating: 15] Favorites ----------- Power Ion Engine Engine Ion Engine Propulsion Wheel Wheel Wheel Utility Large Storage Unit Device Heat Sink Storage Large Storage Unit Processor Machine Analyzer Protection Propulsion Shielding Weapon Small Laser Energy Gun Small Laser Ballistic Gun Light Assault Rifle Launcher Mini Grenade Launcher Build | -11 -10 -9 ------- Run | Yrd Mat Mat Slots Evolved 2 | . . 2 Power . | . . . Propulsion . | . . . Utility 2 | . . 2 Weapon . | . . . Parts Attached 38 | 7 8 23 Power 6 | 1 3 2 Engine 6 | 1 3 2 Core . | . . . Reactor . | . . . Propulsion 9 | 2 2 5 Treads . | . . . Leg . | . . . Wheel 9 | 2 2 5 Hover . | . . . Flight . | . . . Utility 12 | 2 1 9 Device 5 | 1 . 4 Storage 3 | 1 1 1 Processor 1 | . . 1 Hackware . | . . . Protection 3 | . . 3 Artifact . | . . . Weapon 11 | 2 2 7 Energy Gun 8 | 2 1 5 Energy Cannon . | . . . Ballistic Gun 2 | . 1 1 Ballistic Cannon . | . . . Launcher 1 | . . 1 Special Weapon . | . . . Impact Weapon . | . . . Slashing Weapon . | . . . Piercing Weapon . | . . . Special Melee Weapon . | . . . Unidentified Prototypes . | . . . Parts Lost 18 | . 3 15 Power 2 | . 1 1 Propulsion 7 | . 2 5 Utility 3 | . . 3 Weapon 6 | . . 6 Highest Loss Streak 3 | . 1 3 To Critical Strikes . | . . . Average Backups 11 | 1 7 14 Power 1 | . 1 1 Propulsion 2 | . 1 3 Utility 4 | . 2 5 Weapon 2 | . 2 3 Tool/Special . | . . . Unused Backups 17 | . 1 16 Power 2 | . . 2 Propulsion 4 | . . 4 Utility 11 | . 1 10 Weapon . | . . . Tool/Special . | . . . Average Slot Usage (%) 97 | . 98 96 Engine 12 | . 13 10 Wheel 22 | . 27 19 Device 13 | . 14 13 Storage 12 | . 14 11 Processor 6 | . . 11 Protection 4 | . . 8 Energy Gun 16 | . 16 16 Ballistic Gun 7 | . 11 5 Peak Build Rating 15 | 7 8 15 Average Rating 10 | 5 7 12 On Entrance 5 | . 7 8 Avg Prop Armor Cover (%) . | . . . Naked Turns . | . . . Heaviest Build 94 | 11 28 94 Greatest Support 26 | 20 20 26 Greatest Overweight (x) 9 | . 2 9 Average Overweight (x) 1 | . . 2 Largest Inventory Capacity 25 | 8 15 25 Average Capacity 17 | 7 14 19 Most Carried 19 | 3 13 19 Average Carried 11 | 1 7 14 Final Capacity 25 | 8 15 25 Final Carried 19 | 3 13 19 Class Distribution -------------------- 68% | Scavenger-Mutant 31% | Mutant Dominant Class ---------------- Mutant | -10/Materials Scavenger-Mutant | -9/Materials Resources | -11 -10 -9 ----------- Run | Yrd Mat Mat Matter Collected 1200 | 210 701 289 Remotely . | . . . Salvage Created 1839 | 28 675 1136 Parts 91 | 5 41 45 Haulers Intercepted 3 | . 2 1 Recyclers Shooed . | . . . Parts Field Recycled . | . . . Retrieved Matter . | . . . Parts Self-Destructed . | . . . Prevented . | . . . Parts Restored . | . . . Kills | -11 -10 -9 ------- Run | Yrd Mat Mat Combat Hostiles Destroyed 31 | . 11 20 Guns 29 | . 11 18 Classes Destroyed 10 | 1 5 4 Worker 10 | . 7 3 Tunneler 2 | 1 1 . Hauler 3 | . 2 1 Recycler 2 | . . 2 Mechanic 1 | . 1 . Watcher 1 | . . 1 Swarmer 3 | . 3 . Grunt 21 | . 8 13 Duelist 1 | . . 1 Sentry 6 | . . 6 Best Kill Streak 7 | 1 3 7 Combat Bots Only 4 | . 3 4 Max Kills in Single Turn 2 | 1 2 1 Gunslinging . | . . . Exploded . | . . . Melee . | . . . Uniques/NPCs Destroyed . | . . . Combat | -11 -10 -9 -------- Run | Yrd Mat Mat Hostile Shots Fired 204 | . 75 129 Missed 55 | . 16 39 Hits 149 | . 59 90 Melee 6 | . . 6 Projectile 143 | . 59 84 Critical Strikes 1 | . . 1 Damage Taken 1992 | . 648 1344 Core 635 | . 234 401 Absorbed by Shields . | . . . Redirected to Shielding 46 | . . 46 Core Remaining (%) 53 | 100 6 . Volleys Fired 195 | 3 88 104 Largest 2 | 2 2 2 Hottest 115 | 80 80 115 Shots Fired 387 | 6 174 207 Gun 387 | 6 174 207 Cannon . | . . . Launcher . | . . . Special . | . . . Kinetic 139 | . 78 61 Thermal 248 | 6 96 146 Explosive . | . . . Electromagnetic . | . . . Robot Hit Streak 20 | 1 15 20 Robot Miss Streak 6 | 3 5 6 Penetration Max . | . . . Secondary Targets 2 | . 2 . Max Gunslinging Chain 1 | . 1 . Shots Hit Robots 280 | 2 124 154 Core Hits 98 | 1 43 54 Critical Kills . | . . . Critical Parts Destroyed 1 | . 1 . Critical Strikes 10 | . 1 9 Burn 9 | . . 9 Destroy 1 | . 1 . Melee Attacks . | . . . Impact . | . . . Slashing . | . . . Piercing . | . . . Sneak Attacks . | . . . Combat Hostiles . | . . . Follow-up Attacks . | . . . Damage Inflicted 3098 | 22 1199 1877 Guns 3098 | 22 1199 1877 Cannons . | . . . Explosions . | . . . Melee . | . . . Ramming . | . . . Kinetic 811 | . 437 374 Thermal 2287 | 22 762 1503 Explosive . | . . . Electromagnetic . | . . . Impact . | . . . Slashing . | . . . Piercing . | . . . Highest Corruption . | . . . Average Corruption . | . . . Corruption Purged . | . . . Corruption Blocked . | . . . Overload Shots . | . . . Overflow Damage . | . . . Projectiles . | . . . Explosions . | . . . Melee . | . . . Knockbacks . | . . . Impact . | . . . Kinetic . | . . . Secondary . | . . . Self-Inflicted Damage . | . . . Shots . | . . . Rammed . | . . . Targets Rammed . | . . . Kicked . | . . . Crushed . | . . . Highest Temperature 219 | 18 219 186 Average Temperature 39 | 12 44 35 Received Heat Transfer 777 | . 279 498 Siege Activations . | . . . Martial Activations . | . . . Shielding Activations . | . . . Robots Disrupted . | . . . Combat Hostiles . | . . . Robots Corrupted . | . . . Combat Hostiles . | . . . Parts Fried . | . . . Impact Corruptions . | . . . Robots Melted 2 | . . 2 Combat Hostiles 2 | . . 2 Parts Melted 12 | . 1 11 Heat Transferred 6313 | 50 1750 4513 Parts Sabotaged . | . . . Parts Stolen . | . . . Parts Stripped . | . . . Power Chain Reactions . | . . . Alert | -11 -10 -9 ------- Run | Yrd Mat Mat Maximum Alert Level . | . . . Low Security (%) 100 | 100 100 100 Level 1 . | . . . Level 2 . | . . . Level 3 . | . . . Level 4 . | . . . Level 5 . | . . . High Security . | . . . Max Security . | . . . Peak Influence 145 | 5 145 95 Initial 16 | . . 16 Average 55 | . 68 50 Influence Increases 996 | 5 367 624 Destroy 0b10 Robot/C 620 | . 220 400 Destroy 0b10 Robot/NC 95 | 5 55 35 Destroy Leader 168 | . 54 114 Successful Hack 23 | . 8 15 Lose Combat Pursuer 90 | . 30 60 Influence Decreases 965 | 5 326 634 Entered New Map 25 | . . 25 Time Decay 767 | 5 296 466 Lost Part 173 | . 30 143 Squads Dispatched 9 | . 4 5 Investigation 2 | . . 2 Extermination . | . . . Reinforcement 7 | . 4 3 Assault . | . . . Garrison . | . . . Intercept . | . . . Searches Triggered . | . . . Construction Impeded . | . . . Haulers Reinforced . | . . . Active Scanning Responses . | . . . Cargo Convoy Interrupts . | . . . Stealth | -11 -10 -9 --------- Run | Yrd Mat Mat Distress Signals 2 | . . 2 Communications Jammed . | . . . Distress Signals . | . . . Times Spotted 62 | . 23 39 Peak Tracking Total 6 | . 4 6 Tactical Retreats 5 | . 2 3 Traps | -11 -10 -9 ------- Run | Yrd Mat Mat Traps Triggered 2 | . 1 1 Indirectly . | . . . Trap Hack Attempts . | . . . Triggered . | . . . Disarmed . | . . . Reprogrammed . | . . . Reused . | . . . Traps Extracted . | . . . Installed . | . . . Triggered . | . . . Machines | -11 -10 -9 ---------- Run | Yrd Mat Mat Machines Disabled . | . . . Max in Single Turn . | . . . Machines Repaired . | . . . Machines Dismantled . | . . . Machines Sabotaged . | . . . Overloaded Fab Kills . | . . . Hacking | -11 -10 -9 --------- Run | Yrd Mat Mat Machines Accessed 7 | . 3 4 Terminals 6 | . 3 3 Fabricators . | . . . Repair Stations . | . . . Recycling Units . | . . . Scanalyzers 1 | . . 1 Garrison Access . | . . . Total Hacks 15 | . 7 8 Successful 3 | . 1 2 Failed 12 | . 6 6 Catastrophic 2 | . . 2 Database Lockouts . | . . . Manual 12 | . 7 5 Terminals 12 | . 7 5 Fabricators . | . . . Repair Stations . | . . . Recycling Units . | . . . Scanalyzers 3 | . . 3 Garrison Access . | . . . Terminal Hacks 3 | . 1 2 Part Schematic 1 | . . 1 Registered Components 2 | . 1 1 Fabricator Hacks . | . . . Repair Station Hacks . | . . . Recycling Unit Hacks . | . . . Scanalyzer . | . . . Garrison Access Hacks . | . . . Unauthorized Hacks . | . . . Terminals . | . . . Fabricators . | . . . Repair Stations . | . . . Recycling Units . | . . . Scanalyzers . | . . . Garrison Access . | . . . Data Cores Recovered . | . . . Used . | . . . Hacking Detections 7 | . 3 4 Full Trace Events 4 | . 2 2 Feedback Events . | . . . Feedback Blocked . | . . . Robot Schematics Acquired . | . . . Robots Built . | . . . Authchips . | . . . Time . | . . . Total Robot Build Rating . | . . . Part Schematics Acquired 1 | . . 1 Parts Built . | . . . Authchips . | . . . Time . | . . . Total Part Build Rating . | . . . Part Studies Acquired . | . . . Parts Repaired . | . . . Time . | . . . Parts Recycled . | . . . Recycled Matter . | . . . Retrieved Matter . | . . . Retrieved Components . | . . . Parts Scanalyzed . | . . . Part Schematics Acquired . | . . . Parts Damaged . | . . . Bothacking | -11 -10 -9 ------------ Run | Yrd Mat Mat Used RIF Installer . | . . . Robots Hacked . | . . . Non-combat . | . . . Combat . | . . . Robot Hacks Applied . | . . . Relay Couplers Released . | . . . Fabnet Peak Effective % . | . . . Robots Rewired . | . . . Allies Hacked . | . . . Hacks Repelled . | . . . Allies | -11 -10 -9 -------- Run | Yrd Mat Mat Total Allies . | . . . Largest Group . | . . . Highest-Rated Group . | . . . Highest-Rated Ally . | . . . Total Orders . | . . . Ally Attacks . | . . . Total Damage . | . . . Kills . | . . . Allies Corrupted . | . . . Allies Melted . | . . . Intel | -11 -10 -9 ------- Run | Yrd Mat Mat Active Infowar (turns) 1928 | 7 724 1197 Seismic 854 | 7 724 123 Machine Analysis 1197 | . . 1197 Robot Analysis Total . | . . . Derelict Logs Recovered . | . . . Drone Launches . | . . . Drone Recoveries . | . . . Exploration | -11 -10 -9 ------------- Run | Yrd Mat Mat Turns Passed 1988 | 67 724 1197 Spaces Moved 1035 | 37 410 588 Core 1 | 1 . . Treads . | . . . Legs . | . . . Wheels 1034 | 36 410 588 Hover . | . . . Flight . | . . . Fastest Speed 50 | 50 80 95 Average Speed 107 | 79 94 117 Slowest Speed 215 | 80 110 215 Overloaded Moves . | . . . Propulsion Burnouts . | . . . Robots Hopped . | . . . Potential Cave-ins . | . . . Cave-ins Triggered . | . . . Exploration Rate (%) 46 | 4 78 57 Regions Visited 2 Branch Regions . Pre-discovered Areas . | . . . Known Exits Taken . | . . . Unknown Exits Taken 2 | 1 1 . Scrap Searched . | . . . Spaces Dug . | . . . Terrain Destroyed . | . . . Melee . | . . . Projectile . | . . . AOE . | . . . Terrain Rammed . | . . . Walls Destroyed . | . . . Machines Disabled . | . . . Actions | -11 -10 -9 --------- Run | Yrd Mat Mat Total 1547 | 64 587 896 Wait 226 | 15 61 150 Move 1033 | 36 409 588 Hop . | . . . Pick Up 41 | 3 15 23 Fast Attach 11 | 7 . 4 Attach 18 | . 3 15 Detach 1 | . . 1 Swap 11 | . 5 6 Drop 11 | . 6 5 Fire 195 | 3 88 104 Melee . | . . . Ram . | . . . Kick . | . . . Crush . | . . . Escape Stasis . | . . . Rewire . | . . . Trap . | . . . Miscellaneous . | . . . Route ------- -11/Scrapyard -10/Materials (discovered 3 exits: *Mat x2 / [*Min]) -9/Materials History --------- Turn | Location | Event 2 | -11/Scrapyard | Met Revision 17 26 | -11/Scrapyard | Discovered new exit (range 13) 68 | -11/Scrapyard | Entered Materials 287 | -10/Materials | Core integrity fell below 50% 410 | -10/Materials | Discovered new exit (range 8) 489 | -10/Materials | Discovered new exit (range 5) 597 | -10/Materials | Build established: Mutant 692 | -10/Materials | Core integrity fell below 20% 774 | -10/Materials | Discovered new exit (range 16) 792 | -10/Materials | Entered another Materials area 792 | -9/Materials | Evolved 2 slots: Utility x2 1259 | -9/Materials | Build established: Scavenger-Mutant 1329 | -9/Materials | Core integrity fell below 50% 1622 | -9/Materials | Lost 3 parts (1n1u1w) 1886 | -9/Materials | Core integrity fell below 20% 1923 | -9/Materials | Lost 3 parts (1n2w) 1989 | -9/Materials | Destroyed by G-34 Mercenary with Small Laser Last Messages --------------- 01906_ G-34 Mercenary destroyed. 01907_ R-06 Scavenger collects Aluminum Leg. 01909_ Acquired 42 matter. 01909_ K-01 Serf collects debris. 01912_ K-01 Serf cleans the Hadron Collector. 01914_ Acquired Heat Sink. 01915_ Acquired 2 matter. 01916_ K-01 Serf collects debris. 01922_ K-01 Serf destroyed. 01923_ K-01 Serf collects debris. 01926_ Acquired 18 matter. 01929_ K-01 Serf collects debris. 01929_ Acquired Wheel. 01933_ K-01 Serf collects debris. 01947_ O-16 Technician: "IFF HANDSHAKE FAILED. SECURING TERMINAL." 01947_ K-01 Serf collects debris. 01953_ ALERT: Hostiles spotted, dispatching reinforcements to Terminal M008. 01960_ Acquired Wheel. 01978_ Connecting with Terminal... Map ----- +----------------------------------------------------+ | | | | | | | | | | | | | | | | | | | | | | | | | | | | | | | | | | | ????????????????????????###########??????????????? | | ????????????????????????# #??????????????? | | ????????????????????????# #??????????????? | | ????????????????????????# #??????????????? | | ????????????????????????# #??????????????? | | ????????????????????????# #??????????????? | | ????????????????????????# #??????????????? | | ?????????????????######## #??????????????? | | ????????????????# g /@ #??????????????? | | ????????????????# ###########+#####??????????????? | | ???????????????????????# #????????????????? | | ???????????????????????# #????????????????? | | ???????????????????????#"" #????????????????? | | ???????????????????????#"T #????????????????? | | ???????????????????????#"" #????????????????? | | ???????????????????????# #??T?????????????? | | ???????????????????????# #????????????????? | | ????????? ???????????# #??????????"""???? | | ????????# ???????????# #??????????"""???? | | ????????# ???????????# !!! #????????? """???? | | ????????# #??????????# !!! #######+# """???? | | ????????# #??????????# !! """ ??? | | ????????# #??????????# ? | | ????????# #??????????# ? | | ????????# #??[???????# """ ##+########+##???? | | ???????? #??????????# """ # #???????????? | | ????????# #??????????# """ # #?"""???????? | | ????????# ##########?# # #?"""???????? | | ????????# #! #?# # #?"""???????? | | ????????# # """"" #?# """" # #???????????? | | ????????# # """"" #?# """" #" #?"""???????? | | ????????# # """"" #?# """" %#T #?"""???????? | | ????????# # """"" #?# #" #?"""???????? | +----------------------------------------------------+ Best States ------------- Heat Dissipation 48 Energy Generation 10 Energy Capacity 250 Matter Stores 300 Matter Capacity 300 Sight Range 16 Terrain Scan Density 10 Armor Coverage 150 Propulsion Shielding 33 Evasion (%) 44 Item Schematics ----------------- Huge Storage Unit | -9/Materials | Hacked Robot Schematics ------------------ None Fabricated ------------ Nothing Repaired ---------- Nothing Studied --------- None Alien Tech Used ----------------- None Achievements -------------- None Challenges ------------ None Game ------ Seed ActiveDisassembledClaw Manual? 0 Play Time 00:20:27 Cumulative 171.0 hours Start 2026.07.01 @ 19:50:43 End 2026.07.01 @ 20:07:53 Sessions 1 Manual Loads 0 Difficulty Rogue Special Mode None Game No. 233 Rogue 233 Adventurer 0 Explorer 0 Win Type - Total 2 Types 2/0/0/0/0/0/0/0/0/0 Lore% 74 Gallery% 55 Achievement% 42 Wizard Run 0 Options --------- Layout 0 ASCII 0 Keyboard 0 Movement Numpad Keybinds 0 Fullscreen 1 Font 18/Terminus Map View 76x50 Zoom Use 0% Tactical HUD 1 Map Filters NONE Filters NONE Steam 1 RUN: c51949bd-04ea-423d-ae1c-f2a5ea7664da